bitfinex-derivatives/quotes_SOLF0:USTF0_20250719
["timestamp","ask_amount","ask_price","bid_price","bid_amount"]
[1752889565031,5.399918,176.2,176.19,3.14]
[1752889565631,11.071218,176.2,176.19,3.14]
[1752889566729,3.24,176.2,176.19,3.14]
[1752889567633,2.159918,176.2,176.19,3.14]
[1752889568538,5.399918,176.2,176.19,3.14]
[1752889569038,2.159918,176.2,176.19,3.14]
[1752889570439,8.911,176.21,176.19,3.14]
[1752889571042,8.911,176.21,176.2,3.14]
[1752889572637,3.24,176.21,176.2,3.14]
[1752889572833,3.24,176.21,176.18,3.14]
[1752889573038,3.24,176.18,176.13,3.14]
[1752889573339,2.159918,176.19,176.13,3.14]
[1752889574042,2.159918,176.26,176.15,2.159918]
[1752889574043,2.159918,176.21,176.15,2.159918]
[1752889574242,2.159918,176.21,176.16,3.14]
[1752889574441,5.399918,176.21,176.16,3.14]
[1752889574742,3.24,176.2,176.19,3.14]
[1752889574943,3.24,176.2,176.11,4.65089506]
[1752889575142,8.9121,176.18,176.14,5.673]
[1752889575343,3.24,176.18,176.15,3.14]
[1752889575543,8.9121,176.18,176.15,3.14]
[1752889575842,3.24,176.17,176.14,5.673]
[1752889576044,3.24,176.17,176.16,3.14]
[1752889576642,3.24,176.18,176.17,3.14]
[1752889578538,2.159918,176.2,176.14,3.14]
[1752889578740,2.159918,176.2,176.16,3.14]
[1752889578940,11.070918,176.21,176.16,3.14]
[1752889579444,3.24,176.21,176.19,3.14]
[1752889580446,8.911,176.21,176.19,3.14]
[1752889580844,8.911,176.21,176.2,3.14]
[1752889581645,2.159918,176.26,176.2,3.14]
[1752889581646,2.159918,176.23,176.2,3.14]
[1752889581847,2.159918,176.26,176.21,2.159918]
[1752889582151,2.159918,176.26,176.22,3.14]
[1752889582351,11.069018,176.27,176.24,3.14]
[1752889582947,3.24,176.26,176.24,3.14]
[1752889583550,2.159918,176.27,176.26,3.14]
[1752889583955,11.068418,176.29,176.26,3.14]
[1752889584152,5.399918,176.29,176.26,8.8091]
[1752889584353,5.399918,176.29,176.27,3.22]
[1752889584550,2.159918,176.29,176.27,3.22]
[1752889584853,3.19,176.31,176.29,3.22]
[1752889584854,5.349918,176.31,176.29,3.22]
[1752889585259,5.349918,176.31,176.3,3.22]
[1752889585458,4.95892975,176.31,176.3,3.22]
[1752889585759,1.76892975,176.33,176.3,3.22]
[1752889586160,4.95892975,176.35,176.3,4.98892975]
[1752889586358,4.95892975,176.35,176.31,3.22]
[1752889586660,4.95892975,176.35,176.32,5.6672]
[1752889586858,4.95892975,176.35,176.33,3.22]
[1752889587762,4.95892975,176.35,176.34,3.22]
[1752889588260,10.62542975,176.35,176.34,3.22]
[1752889588864,4.95892975,176.35,176.34,3.22]
[1752889590165,10.62542975,176.35,176.34,3.22]
[1752889591966,4.95892975,176.35,176.34,3.22]
[1752889593766,3.19,176.35,176.34,3.22]
[1752889599175,4.95892975,176.36,176.34,3.22]
[1752889600075,4.95892975,176.36,176.35,3.22]
[1752889600476,1.76892975,176.36,176.35,3.22]
[1752889604174,4.95892975,176.39,176.36,3.22]
[1752889605470,3.19,176.38,176.37,3.22]
[1752889605978,8.8556,176.38,176.37,3.22]
[1752889606178,3.19,176.38,176.37,3.22]
[1752889607481,4.95892975,176.39,176.37,3.22]
[1752889609087,4.95892975,176.39,176.35,1.76892975]
[1752889609282,3.19,176.39,176.35,1.76892975]
[1752889609681,3.19,176.39,176.36,5.666]
[1752889609985,3.19,176.39,176.36,3.22]
[1752889610682,3.19,176.39,176.37,5.6658]
[1752889610883,3.19,176.39,176.38,3.22]
[1752889611085,8.8552,176.39,176.38,3.22]
[1752889612588,3.19,176.39,176.38,3.22]
[1752889612789,1.76892975,176.4,176.38,3.22]
[1752889612978,0.04136059,176.4,176.38,3.22]
[1752889613178,0.04136059,176.4,176.39,5.6652]
[1752889613385,0.04136059,176.4,176.39,8.8852]
[1752889613689,0.04136059,176.4,176.39,10.65412975]
[1752889614286,7.43262975,176.44,176.4,5.6647]
[1752889614485,10.52262975,176.44,176.41,3.06]
[1752889615384,5.6637,176.44,176.41,3.06]
[1752889615584,3.09,176.45,176.41,3.06]
[1752889615782,4.85892975,176.45,176.41,3.09671705]
[1752889615987,4.85892975,176.45,176.41,4.8656468]
[1752889616288,4.85892975,176.45,176.42,3.06]
[1752889616588,1.76892975,176.45,176.43,3.06]
[1752889616784,3.09,176.44,176.43,3.06]
[1752889616990,105.66892975,176.47,176.43,3.06]
[1752889617192,8.7524,176.48,176.45,3.06]
[1752889617394,1.76892975,176.47,176.45,3.06]
[1752889617589,1.76892975,176.47,176.46,3.06]
[1752889617888,3.09,176.48,176.44,3.10347229]
[1752889618082,3.09,176.46,176.45,3.06]
[1752889618288,8.753,176.46,176.45,3.06]
[1752889618582,3.09,176.46,176.45,3.06]
[1752889619291,3.09,176.45,176.44,3.10347229]
[1752889619592,4.85892975,176.45,176.44,3.10347229]
[1752889619887,6.6278595,176.45,176.44,0.04347229]
[1752889620093,6.6278595,176.45,176.39,3.06]
[1752889620301,1.76892975,176.42,176.39,3.06]
[1752889620486,3.09,176.4,176.39,3.06]
[1752889620790,1.76892975,176.42,176.39,3.06]
[1752889620985,4.85892975,176.42,176.39,3.06]
[1752889621387,1.76892975,176.42,176.39,3.06]
[1752889622186,4.85892975,176.42,176.41,3.06]
[1752889622392,4.85892975,176.42,176.38,1.76892975]
[1752889622393,3.09,176.41,176.4,3.06]
[1752889623594,1.76892975,176.44,176.41,3.06]
[1752889623993,1.76892975,176.44,176.4,1.76892975]
[1752889624192,1.76892975,176.45,176.42,3.06]
[1752889624593,4.85892975,176.45,176.42,3.06]
[1752889625192,1.76892975,176.43,176.35,6.41982481]
[1752889625394,1.76892975,176.43,176.39,3.06]
[1752889625395,3.09,176.42,176.39,3.06]
[1752889625598,3.09,176.42,176.4,5.6648]
[1752889625895,3.09,176.42,176.41,3.06]
[1752889626100,4.85892975,176.43,176.42,3.06]
[1752889627294,1.76892975,176.43,176.4,3.06]
[1752889627595,3.09,176.42,176.38,3.06]
[1752889627795,3.09,176.42,176.39,5.6649]
[1752889627986,3.09,176.42,176.4,3.06]
[1752889628694,4.85892975,176.43,176.4,3.06]
[1752889629295,10.52282975,176.43,176.4,3.06]
[1752889629497,3.09,176.42,176.4,3.06]
[1752889629996,3.09,176.42,176.41,3.06]
[1752889632101,1.76892975,176.43,176.41,3.06]
[1752889632303,1.76892975,176.45,176.41,4.82892975]
[1752889632503,1.76892975,176.48,176.44,3.06]
[1752889633302,1.76892975,176.49,176.47,3.06]
[1752889634195,10.52062975,176.5,176.47,3.06]
[1752889634602,4.85892975,176.5,176.47,5.6624]
[1752889634903,3.09,176.52,176.49,3.06]
[1752889635297,104.32,176.53,176.49,4.82892975]
[1752889635504,89.94965137,176.54,176.5,3.06]
[1752889635702,3.09,176.53,176.5,3.06]
[1752889636100,86.85965137,176.54,176.5,3.06]
[1752889636305,3.09,176.52,176.51,3.06]
[1752889636699,92.52005137,176.54,176.5,5.6616]
[1752889636999,95.61005137,176.54,176.53,3.06]
[1752889637197,4.85892975,176.54,176.53,3.06]
[1752889637400,1.76892975,176.56,176.53,3.06]
[1752889637606,4.85892975,176.56,176.53,3.06]
[1752889637798,3.09,176.55,176.53,3.06]
[1752889638004,3.09,176.54,176.53,3.06]
[1752889641705,1.76892975,176.56,176.53,3.06]
[1752889641905,4.85892975,176.56,176.53,3.06]
[1752889642600,4.85892975,176.56,176.5,1.76892975]
[1752889642601,3.09,176.55,176.51,3.06]
[1752889643208,3.09,176.55,176.51,8.7213]
[1752889643509,3.09,176.55,176.52,3.06]
[1752889644511,1.76892975,176.54,176.49,1.76892975]
[1752889644708,3.08,176.53,176.5,3.05]
[1752889645812,3.08,176.53,176.5,5.6616]
[1752889646010,3.08,176.53,176.52,3.05]
[1752889646711,8.7401,176.55,176.52,3.05]
[1752889646914,3.08,176.54,176.52,3.05]
[1752889647410,3.08,176.53,176.52,3.05]
[1752889648617,5.6602,176.55,176.52,3.05]
[1752889648618,3.08,176.54,176.52,3.05]
[1752889648810,4.84892975,176.56,176.52,3.05]
[1752889649112,3.08,176.55,176.52,3.05]
[1752889650419,3.08,176.54,176.51,5.6612]
[1752889650619,3.08,176.54,176.53,3.05]
[1752889651115,4.84892975,176.56,176.53,3.05]
[1752889652222,10.50892975,176.56,176.53,3.05]
[1752889652419,4.84892975,176.56,176.53,3.05]
[1752889653121,104.18,176.6,176.53,3.05]
[1752889653421,104.14,176.64,176.56,3.05]
[1752889653626,4.84892975,176.61,176.56,3.05]
[1752889653823,3.08,176.6,176.56,3.05]
[1752889654322,3.08,176.59,176.56,3.05]
[1752889655032,3.08,176.58,176.57,3.05]
[1752889655323,3.08,176.58,176.51,3.05]
[1752889655518,3.08,176.54,176.52,5.6608]
[1752889655721,3.08,176.54,176.5,1.76892975]
[1752889655722,3.08,176.54,176.53,3.05]
[1752889656519,3.08,176.54,176.49,3.05]
[1752889656724,3.08,176.49,176.47,3.05]
[1752889657030,3.08,176.48,176.47,3.05]
[1752889657234,4.84892975,176.48,176.47,3.05]
[1752889657730,3.08,176.46,176.45,3.05]
[1752889658426,104.22,176.57,176.43,3.05]
[1752889658427,3.08,176.45,176.43,3.05]
[1752889658632,4.84892975,176.45,176.44,3.05]
[1752889658830,1.76892975,176.45,176.44,3.05]
[1752889659726,1.76892975,176.48,176.45,3.05]
[1752889660320,1.76892975,176.48,176.46,3.05]
[1752889660519,5.6618,176.5,176.46,3.05]
[1752889660520,1.76892975,176.5,176.46,3.05]
[1752889660721,1.76892975,176.51,176.47,3.05]
[1752889660923,4.84892975,176.53,176.48,5.6623]
[1752889661126,4.84892975,176.53,176.49,3.05]
[1752889661526,3.08,176.52,176.49,3.05]
[1752889661828,8.741,176.52,176.48,5.6623]
[1752889662130,3.08,176.51,176.5,3.05]
[1752889662529,1.76892975,176.55,176.5,3.05]
[1752889662530,1.76892975,176.53,176.5,3.05]
[1752889662728,4.84892975,176.55,176.5,3.05]
[1752889662919,0.04318048,176.52,176.5,3.05]
[1752889663228,0.04318048,176.52,176.5,8.7114]
[1752889663433,0.04318048,176.52,176.5,3.05]
[1752889663926,0.04318048,176.52,176.5,8.7116]
[1752889664137,0.04318048,176.52,176.51,3.05]
[1752889666423,0.04318048,176.52,176.51,8.7113]
[1752889667030,4.84892975,176.56,176.52,8.711]
[1752889667230,4.84892975,176.56,176.53,3.05]
[1752889667425,1.76892975,176.56,176.53,3.05]
[1752889667734,3.08,176.56,176.55,3.05]
[1752889668731,4.84892975,176.57,176.55,3.05]
[1752889668932,4.84892975,176.57,176.56,3.05]
[1752889670730,3.08,176.58,176.57,3.05]
[1752889670928,1.76892975,176.58,176.57,3.05]
[1752889671529,4.84892975,176.58,176.57,3.05]
[1752889675535,4.84892975,176.58,176.54,5.69601077]
[1752889675731,3.28,176.59,176.54,3.08571077]
[1752889675931,5.04892975,176.55,176.54,0.03571077]
[1752889676134,10.70902975,176.55,176.54,0.03571077]
[1752889676539,5.04892975,176.55,176.54,0.03571077]
[1752889676737,1.76892975,176.55,176.54,3.08571077]
[1752889678535,10.70902975,176.55,176.54,3.08571077]
[1752889679936,10.70902975,176.55,176.54,0.03571077]
[1752889680244,12.4779595,176.55,176.54,0.03571077]
[1752889681540,8.9401,176.55,176.54,0.03571077]
[1752889681728,10.70902975,176.55,176.54,3.08571077]
[1752889682039,10.70902975,176.55,176.54,0.03571077]
[1752889682337,5.04892975,176.56,176.54,3.08571077]
[1752889682538,1.76892975,176.56,176.54,3.08571077]
[1752889683138,5.04892975,176.56,176.55,3.05]
[1752889684139,3.28,176.56,176.55,3.05]
[1752889684441,5.04892975,176.56,176.55,3.05]
[1752889685040,10.70862975,176.56,176.55,3.05]
[1752889687339,8.9397,176.56,176.55,3.05]
[1752889687642,10.70862975,176.56,176.55,3.05]
[1752889688542,8.9401,176.55,176.54,0.03571077]
[1752889690247,8.9401,176.55,176.54,3.08571077]
[1752889690853,7.42882975,176.56,176.54,3.08571077]
[1752889691245,10.70882975,176.56,176.54,3.08571077]
[1752889691849,7.42882975,176.56,176.54,3.08571077]
[1752889692148,1.76892975,176.56,176.54,3.08571077]
[1752889693842,7.42872975,176.56,176.54,3.08571077]
[1752889694148,10.70872975,176.56,176.54,3.08571077]
[1752889694647,5.6601,176.55,176.54,0.03571077]
[1752889694844,8.9401,176.55,176.54,3.08571077]
[1752889695049,8.9401,176.55,176.54,0.03571077]
[1752889696548,10.70902975,176.55,176.54,0.03571077]
[1752889700459,12.4779595,176.55,176.54,0.03571077]
[1752889700755,1.76892975,176.47,176.46,3.05]
[1752889700955,5.04892975,176.48,176.46,3.05]
[1752889701162,10.71142975,176.48,176.46,3.05]
[1752889701360,5.04892975,176.48,176.47,3.05]
[1752889701552,1.76892975,176.48,176.43,3.05]
[1752889701752,5.04892975,176.45,176.42,3.05]
[1752889701955,3.28,176.44,176.43,4.31616124]
[1752889702155,5.04892975,176.43,176.42,3.05]
[1752889702354,3.28,176.43,176.42,7.36619503]
[1752889702564,1.76892975,176.44,176.43,3.05]
[1752889702953,1.76892975,176.48,176.43,1.76892975]
[1752889703153,1.76892975,176.48,176.44,3.05]
[1752889703656,5.04892975,176.48,176.44,3.05]
[1752889703859,3.28,176.48,176.44,3.05]
[1752889704059,5.04892975,176.5,176.44,3.05]
[1752889704258,5.04892975,176.5,176.46,3.05]
[1752889704458,10.71082975,176.5,176.46,3.05]
[1752889704858,5.6621,176.49,176.46,3.05]
[1752889706462,5.6623,176.48,176.46,3.05]
[1752889709863,8.8021,176.49,176.46,3.05]
[1752889710660,7.43072975,176.5,176.46,3.05]
[1752889710862,10.57072975,176.5,176.46,3.05]
[1752889711264,5.662,176.49,176.46,3.05]
[1752889711761,1.76892975,176.5,176.47,3.16]
[1752889712059,7.43052975,176.51,176.48,3.16]
[1752889712267,5.6616,176.51,176.48,3.16]
[1752889712863,7.43002975,176.52,176.48,3.16]
[1752889713263,7.43002975,176.52,176.5,3.16]
[1752889713264,5.6611,176.52,176.5,3.16]
[1752889713462,3.14,176.54,176.5,3.16]
[1752889714467,3.14,176.53,176.5,3.16]
[1752889715869,3.14,176.52,176.49,1.76892975]
[1752889716173,3.14,176.52,176.51,3.16]
[1752889716669,8.801,176.52,176.51,3.16]
[1752889718069,1.76892975,176.53,176.43,4.64472539]
[1752889718265,3.14,176.5,176.46,3.16]
[1752889718469,1.76892975,176.51,176.46,3.16]
[1752889718470,3.14,176.49,176.46,3.16]
[1752889718869,8.8022,176.49,176.46,3.16]
[1752889719070,5.6622,176.49,176.46,3.16]
[1752889720170,5.6623,176.48,176.46,3.16]
[1752889720465,1.76892975,176.51,176.46,3.16]
[1752889720660,4.90892975,176.51,176.48,3.16]
[1752889720863,5.662,176.49,176.48,3.16]
[1752889722668,5.6617,176.5,176.48,3.16]
[1752889723069,1.76892975,176.51,176.48,3.16]
[1752889723765,4.90892975,176.49,176.41,4.64472539]
[1752889723971,3.14,176.46,176.44,3.16]
[1752889724171,1.76892975,176.45,176.4,1.76892975]
[1752889724370,3.14,176.44,176.42,3.16]
[1752889724665,10.57222975,176.45,176.44,3.16]
[1752889724864,7.43222975,176.45,176.44,3.16]
[1752889727068,10.57222975,176.45,176.44,3.16]
[1752889727573,1.76892975,176.46,176.44,3.16]
[1752889728873,7.43192975,176.46,176.44,3.16]
[1752889729968,1.76892975,176.46,176.44,3.16]
[1752889730175,1.76892975,176.48,176.44,3.16]
[1752889730569,7.43142975,176.48,176.44,8.8236]
[1752889730769,7.43142975,176.48,176.45,3.16]
[1752889731272,5.6625,176.48,176.45,3.16]
[1752889731473,7.43142975,176.48,176.45,3.16]
[1752889732572,5.6629,176.47,176.45,3.16]
[1752889732771,8.8029,176.47,176.46,3.16]
[1752889732970,4.90892975,176.48,176.44,3.16]
[1752889733174,1.76892975,176.48,176.44,3.16]
[1752889733376,7.43132975,176.48,176.45,3.16]
[1752889734078,10.57132975,176.48,176.45,3.16]
[1752889735181,5.6627,176.47,176.45,3.16]
[1752889738379,3.14,176.48,176.45,3.16]
[1752889738575,1.76892975,176.55,176.46,1.76892975]
[1752889738777,5.07892975,176.51,176.47,3.02]
[1752889739376,8.9719,176.5,176.47,3.02]
[1752889739677,3.31,176.5,176.47,3.02]
[1752889740883,5.662,176.49,176.47,3.02]
[1752889741073,3.31,176.48,176.4,4.64472539]
[1752889741384,3.31,176.46,176.45,3.02]
[1752889742175,1.76892975,176.47,176.43,3.02]
[1752889742382,1.76892975,176.5,176.43,3.02]
[1752889742383,3.31,176.44,176.43,3.02]
[1752889742576,1.76892975,176.45,176.38,10.30992539]
[1752889742577,3.31,176.43,176.38,10.30992539]
[1752889742781,3.5378595,176.45,176.37,104.36]
[1752889742782,5.07892975,176.42,176.39,3.02]
[1752889742984,3.31,176.41,176.4,3.02]
[1752889743381,3.31,176.41,176.38,3.02]
[1752889743684,3.31,176.4,176.37,3.02]
[1752889743883,3.31,176.4,176.38,3.02]
[1752889744485,8.975,176.4,176.38,3.02]
[1752889744686,3.31,176.39,176.38,3.02]
[1752889745482,3.31,176.39,176.36,3.02]
[1752889745678,5.07892975,176.38,176.37,3.02]
[1752889745888,3.31,176.36,176.35,3.02]
[1752889746089,5.07892975,176.36,176.35,3.02]
[1752889747285,7.43512975,176.36,176.31,5.6677]
[1752889747490,3.31,176.35,176.34,3.02]
[1752889749083,3.31,176.35,176.32,3.02]
[1752889749285,5.07892975,176.33,176.3,3.02]
[1752889749787,5.07892975,176.36,176.3,4.78892975]
[1752889749990,5.07892975,176.36,176.31,3.02]
[1752889750187,5.07892975,176.36,176.31,4.78892975]
[1752889750382,5.07892975,176.36,176.32,3.02]
[1752889751394,5.07892975,176.36,176.33,5.6671]
[1752889751691,5.07892975,176.38,176.35,3.02]
[1752889751993,10.74382975,176.4,176.35,5.6662]
[1752889752193,5.07892975,176.4,176.36,3.02]
[1752889752691,8.9754,176.39,176.36,3.02]
[1752889752893,3.31,176.41,176.37,4.78892975]
[1752889753089,5.07892975,176.43,176.38,3.02]
[1752889753290,3.31,176.42,176.4,3.02]
[1752889753495,3.31,176.42,176.41,3.02]
[1752889754194,5.6642,176.43,176.41,3.02]
[1752889754386,3.31,176.43,176.41,3.02]
[1752889754586,3.31,176.43,176.42,3.02]
[1752889756103,8.9739,176.43,176.42,3.02]
[1752889756292,5.6639,176.43,176.39,1.76892975]
[1752889756495,3.31,176.42,176.41,3.02]
[1752889758497,3.31,176.41,176.39,3.02]
[1752889758998,1.76892975,176.42,176.39,3.02]
[1752889759201,5.6649,176.4,176.31,104.46]
[1752889759397,3.31,176.39,176.38,3.02]
[1752889760795,3.31,176.41,176.38,3.02]
[1752889761001,3.31,176.41,176.37,3.02]
[1752889761206,7.43322975,176.42,176.37,3.02]
[1752889761503,3.31,176.4,176.37,3.02]
[1752889761700,3.31,176.42,176.38,3.02]
[1752889762002,5.07892975,176.42,176.38,3.02]
[1752889762393,5.6646,176.41,176.38,3.02]
[1752889762599,5.07892975,176.42,176.38,3.02]
[1752889762897,1.76892975,176.46,176.42,3.02]
[1752889763093,5.07892975,176.46,176.42,3.02]
[1752889763799,10.74212975,176.46,176.42,3.02]
[1752889764199,8.9732,176.46,176.42,3.02]
[1752889764404,5.6632,176.46,176.42,3.02]
[1752889764601,5.6632,176.46,176.43,1.76892975]
[1752889764803,5.6632,176.46,176.44,3.11]
[1752889765003,5.6633,176.45,176.44,3.11]
[1752889765204,8.9433,176.45,176.44,3.11]
[1752889765397,3.28,176.44,176.43,3.11]
[1752889765599,8.9436,176.44,176.43,3.11]
[1752889765800,3.28,176.44,176.41,3.11]
[1752889766309,8.9439,176.43,176.42,3.11]
[1752889766499,8.9439,176.43,176.34,4.64472539]
[1752889766500,1.76892975,176.43,176.38,1.76892975]
[1752889766703,3.28,176.41,176.39,3.11]
[1752889766902,3.28,176.41,176.4,3.11]
[1752889767103,5.6643,176.42,176.4,3.11]
[1752889767298,8.9443,176.42,176.41,3.11]
[1752889771003,8.9443,176.42,176.39,3.11]
[1752889771206,3.28,176.4,176.36,1.76892975]
[1752889771407,3.28,176.4,176.37,3.11]
[1752889771910,3.28,176.4,176.38,3.11]
[1752889772110,1.76892975,176.41,176.38,3.11]
[1752889772406,3.28,176.39,176.38,3.11]
[1752889772711,5.04892975,176.41,176.38,3.11]
[1752889772909,3.28,176.41,176.38,3.11]
[1752889773111,5.04892975,176.41,176.38,3.11]
[1752889775816,5.04892975,176.41,176.39,3.11]
[1752889776114,5.04892975,176.41,176.4,3.11]
[1752889777015,3.28,176.41,176.4,3.11]
[1752889777213,3.28,176.43,176.4,3.11]
[1752889777811,3.28,176.42,176.4,3.11]
[1752889778215,3.28,176.42,176.39,3.11]
[1752889778617,3.28,176.42,176.39,8.775]
[1752889778818,3.28,176.42,176.4,3.11]
[1752889780118,8.9442,176.42,176.4,3.11]
[1752889780312,8.9442,176.42,176.38,7.43432975]
[1752889780512,8.9442,176.42,176.41,3.11]
[1752889780713,3.28,176.42,176.41,3.11]
[1752889786817,8.11173219,176.5,176.41,3.11]
[1752889787122,5.04892975,176.46,176.41,3.11]
[1752889787526,5.04892975,176.46,176.43,3.11]
[1752889787715,3.28,176.47,176.43,3.11]
[1752889788529,3.28,176.46,176.44,3.11]
[1752889790022,8.943,176.46,176.44,3.11]
[1752889791928,5.6627,176.47,176.44,3.11]
[1752889792226,8.9427,176.47,176.44,3.11]
[1752889792627,8.9427,176.47,176.45,3.11]
[1752889793127,5.6622,176.49,176.45,5.6632]
[1752889793327,10.71112975,176.49,176.46,3.11]
[1752889793831,5.6623,176.48,176.46,3.11]
[1752889794126,8.9423,176.48,176.46,3.11]
[1752889794824,8.9423,176.48,176.47,3.16]
[1752889795822,3.17,176.47,176.45,3.16]
[1752889796029,3.17,176.47,176.46,3.16]
[1752889796227,3.17,176.48,176.43,1.76892975]
[1752889796427,3.17,176.48,176.45,3.16]
[1752889796628,3.17,176.47,176.45,3.16]
[1752889798333,3.17,176.47,176.45,8.8233]
[1752889798529,3.17,176.47,176.46,3.16]
[1752889799230,10.60102975,176.49,176.46,3.16]
[1752889799525,3.17,176.48,176.46,3.16]
[1752889800326,7.43102975,176.49,176.46,3.16]
[1752889800527,5.6623,176.48,176.46,3.16]
[1752889800727,4.93892975,176.49,176.46,3.16]
[1752889801831,10.60102975,176.49,176.46,3.16]
[1752889802031,1.76892975,176.49,176.47,3.16]
[1752889802336,1.76892975,176.52,176.48,3.16]
[1752889802927,3.17,176.53,176.49,1.76892975]
[1752889803129,1.76892975,176.55,176.5,3.16]
[1752889803334,87.79760671,176.57,176.52,3.16]
[1752889803528,87.79760671,176.57,176.53,5.6604]
[1752889803529,3.17,176.56,176.53,5.6604]
[1752889803729,3.17,176.56,176.54,3.16]
[1752889804327,4.93892975,176.55,176.52,3.16]
[1752889804832,4.93892975,176.56,176.52,3.16]
[1752889805534,10.59892975,176.56,176.53,3.16]
[1752889805933,382.58892975,176.6,176.5,1.76892975]
[1752889805934,3.17,176.58,176.55,3.16]
[1752889806234,3.17,176.57,176.56,3.16]
[1752889806437,8.8296,176.57,176.56,3.16]
[1752889806635,3.17,176.57,176.56,3.16]
[1752889807235,1.76892975,176.59,176.54,1.76892975]
[1752889807443,3.17,176.58,176.57,3.16]
[1752889808137,3.17,176.58,176.47,3.16]
[1752889808331,1.76892975,176.57,176.53,3.16]
[1752889808530,3.17,176.55,176.54,3.16]
[1752889810235,8.8301,176.55,176.54,3.16]
[1752889810432,5.6601,176.55,176.52,3.16]
[1752889810939,3.17,176.58,176.54,3.16]
[1752889811134,3.17,176.57,176.54,3.16]
[1752889811341,8.8293,176.58,176.55,3.16]
[1752889811541,3.17,176.57,176.55,3.16]
[1752889811741,3.17,176.57,176.53,1.76892975]
[1752889811742,4.93892975,176.57,176.54,3.16]
[1752889812041,3.17,176.55,176.54,3.16]
[1752889812439,7.42862975,176.57,176.54,3.16]
[1752889812641,3.17,176.56,176.54,3.16]
[1752889813345,3.17,176.56,176.54,8.8204]
[1752889813541,10.59862975,176.57,176.56,3.16]
[1752889814438,4.93892975,176.57,176.56,3.16]
[1752889815951,10.59832975,176.57,176.56,3.16]
[1752889816146,8.8294,176.57,176.56,3.16]
[1752889820248,10.59832975,176.57,176.56,3.16]
[1752889822145,4.93892975,176.57,176.51,1.76892975]
[1752889822350,0.03569441,176.58,176.53,3.16]
[1752889822351,3.17,176.54,176.53,3.16]
[1752889823046,10.59932975,176.54,176.53,3.16]
[1752889823241,1.76892975,176.54,176.53,3.16]
[1752889823443,1.76892975,176.56,176.53,3.16]
[1752889823647,1.76892975,176.57,176.53,3.16]
[1752889824247,3.17,176.56,176.53,5.6605]
[1752889824449,3.3,176.55,176.54,3.25]
[1752889824652,5.06892975,176.55,176.54,3.25]
[1752889824951,3.3,176.54,176.52,3.25]
[1752889825354,3.3,176.54,176.53,3.25]
[1752889825854,8.9604,176.54,176.53,3.25]
[1752889828956,1.76892975,176.55,176.42,484.72]
[1752889828957,3.5378595,176.55,176.44,3.25]
[1752889829256,1.76892975,176.48,176.46,3.25]
[1752889829556,1.76892975,176.48,176.47,3.25]
[1752889829754,5.06892975,176.48,176.47,3.25]
[1752889830052,10.73122975,176.48,176.47,3.25]
[1752889830251,3.3,176.47,176.41,1.76892975]
[1752889830453,3.3,176.45,176.42,3.25]
[1752889831053,8.9634,176.45,176.42,3.25]